[Event "11th LCC FIDE Open 2019"]
[Site "London"]
[Date "2019.12.02"]
[Round "5.38"]
[White "Deaconu, Mihai Ionut"]
[Black "Manfay, Mate"]
[Result "*"]
[ECO "D19"]
[WhiteElo "1957"]
[BlackElo "2197"]
[Annotator "ChessBase"]
[PlyCount "26"]
[EventDate "2019.11.29"]
[EventType "swiss"]
[EventCountry "ENG"]
[SourceTitle "playchess.com"]
[Source "ChessBase"]
[SourceQuality "1"]
[TimeControl "40/5400+30:1800+30"]

1. d4 {[%emt 0:00:00]} d5 {[%emt 0:06:52]} 2. c4 {[%emt 0:00:00]} c6 {[%emt 0:00:07]} 3. Nc3 {[%emt 0:00:00]} Nf6 {[%emt 0:00:09]} 4. Nf3 {[%emt 0:00:06]} dxc4 {[%emt 0:00:15]} 5. a4 {[%emt 0:00:20]} Bf5 {[%emt 0:00:04]} 6. e3 {[%emt 0:00:38]} e6 {[%emt 0:00:04]} 7. Bxc4 {[%emt 0:00:20]} Bb4 {[%emt 0:00:06]} 8. O-O {[%emt 0:00:43]} Nbd7 {[%emt 0:00:03]} 9. Qe2 {[%emt 0:08:48]} Bg6 {[%emt 0:00:22]} 10. Rd1 {[%emt 0:13:11]} O-O {[%emt 0:00:05]} 11. Ne1 {[%emt 0:00:41]} Qe7 {[%emt 0:01:48]} 12. Nc2 {[%emt 0:11:26]} Bxc2 {[%emt 0:17:43]} 13. Qxc2 {[%emt 0:00:06]} e5 {[%emt 0:03:19]} *

[Event "11th LCC FIDE Open 2019"]
[Site "London"]
[Date "2019.12.02"]
[Round "5.40"]
[White "Chapman, Matt"]
[Black "Abrahams, Daniel"]
[Result "*"]
[ECO "A47"]
[WhiteElo "1937"]
[BlackElo "2185"]
[Annotator "ChessBase"]
[PlyCount "45"]
[EventDate "2019.11.29"]
[EventType "swiss"]
[EventCountry "ENG"]
[SourceTitle "playchess.com"]
[Source "ChessBase"]
[SourceQuality "1"]
[TimeControl "40/5400+30:1800+30"]

1. d4 {[%emt 0:00:00]} Nf6 {[%emt 0:00:00]} 2. Nf3 {[%emt 0:00:00]} e6 {[%emt 0:00:00]} 3. Bf4 {[%emt 0:00:00]} c5 {[%emt 0:00:04]} 4. e3 {[%emt 0:00:02]} b6 {[%emt 0:00:09]} 5. Nc3 {[%emt 0:04:13]} cxd4 {[%emt 0:00:33]} 6. exd4 {[%emt 0:00:28]} d6 {[%emt 0:00:16]} 7. Bb5+ {[%emt 0:08:47]} Bd7 {[%emt 0:00:23]} 8. a4 {[%emt 0:00:52]} Be7 {[%emt 0:01:43]} 9. O-O {[%emt 0:00:53]} O-O {[%emt 0:00:06]} 10. Re1 {[%emt 0:01:15]} a6 {[%emt 0:02:19]} 11. Bxd7 {[%emt 0:05:05]} Nbxd7 {[%emt 0:00:23]} 12. Qd3 {[%emt 0:04:11]} Qc7 {[%emt 0:00:25]} 13. Ne4 {[%emt 0:03:11]} Nxe4 {[%emt 0:00:15]} 14. Qxe4 {[%emt 0:00:15]} Nf6 {[%emt 0:00:06]} 15. Qd3 {[%emt 0:03:16]} Rfc8 {[%emt 0:00:12]} 16. c3 {[%emt 0:01:49]} Qc6 {[%emt 0:00:17]} 17. Ng5 {[%emt 0:16:33]} h6 {[%emt 0:10:20]} 18. Ne4 {[%emt 0:01:49]} Nxe4 {[%emt 0:00:07]} 19. Qxe4 {[%emt 0:00:06]} Qxe4 {[%emt 0:00:34]} 20. Rxe4 {[%emt 0:00:04]} d5 {[%emt 0:00:07]} 21. Ree1 {[%emt 0:00:25]} b5 {[%emt 0:00:05]} 22. axb5 {[%emt 0:01:24]} axb5 {[%emt 0:00:03]} 23. Bd2 {[%emt 0:00:17]} *

[Event "11th LCC FIDE Open 2019"]
[Site "London"]
[Date "2019.12.02"]
[Round "5.42"]
[White "Modi, Shyam Jagdish"]
[Black "Rogacewicz, Mikolaj"]
[Result "0-1"]
[ECO "E04"]
[WhiteElo "2124"]
[BlackElo "1921"]
[Annotator "ChessBase"]
[PlyCount "70"]
[EventDate "2019.11.29"]
[EventType "swiss"]
[EventCountry "ENG"]
[SourceTitle "playchess.com"]
[Source "ChessBase"]
[SourceQuality "1"]
[TimeControl "40/5400+30:1800+30"]

1. d4 {[%emt 0:00:00]} e6 {[%emt 0:00:00]} 2. c4 {[%emt 0:00:00]} Nf6 {[%emt 0:00:14]} 3. g3 {[%emt 0:00:00]} d5 {[%emt 0:00:20]} 4. Nf3 {[%emt 0:00:00]} dxc4 {[%emt 0:00:30]} 5. Bg2 {[%emt 0:00:00]} Bb4+ {[%emt 0:00:13]} 6. Bd2 {[%emt 0:00:00]} a5 {[%emt 0:00:12]} 7. Qc2 {[%emt 0:00:37]} Bxd2+ {[%emt 0:00:25]} 8. Qxd2 {[%emt 0:00:32]} c6 {[%emt 0:00:22]} 9. a4 {[%emt 0:01:51]} Ne4 {[%emt 0:00:17]} 10. Qc2 {[%emt 0:10:14]} Nd6 {[%emt 0:00:24]} 11. Ne5 {[%emt 0:03:40]} Na6 {[%emt 0:07:02]} 12. Nd2 {[%emt 0:15:38]} Nb4 {[%emt 0:03:55]} 13. Qc3 {[%emt 0:05:45]} f6 {[%emt 0:02:43]} 14. Nef3 {[%emt 0:01:57]} b5 {[%emt 0:03:46]} 15. O-O {[%emt 0:05:12]} O-O {[%emt 0:09:48]} 16. Ne1 {[%emt 0:10:36]} Nd5 {[%emt 0:08:06]} 17. Qc1 {[%emt 0:03:51]} Ra6 {[%emt 0:03:51]} 18. e4 {[%emt 0:07:34]} Nb6 {[%emt 0:04:19]} 19. b3 {[%emt 0:15:43]} cxb3 {[%emt 0:03:48]} 20. Nxb3 {[%emt 0:00:09]} Nxa4 {[%emt 0:01:21]} 21. Nd3 {[%emt 0:00:39]} Kh8 {[%emt 0:10:22]} 22. Rd1 {[%emt 0:03:38]} Nc4 {[%emt 0:04:19]} 23. Rxa4 {[%emt 0:02:41]} bxa4 {[%emt 0:00:25]} 24. Nbc5 {[%emt 0:00:01]} Nd6 {[%emt 0:00:58]} 25. Nxa6 {[%emt 0:00:10]} Bxa6 {[%emt 0:00:13]} 26. Nc5 {[%emt 0:01:44]} Qc8 {[%emt 0:02:05]} 27. Qf4 {[%emt 0:06:05]} Nb5 {[%emt 0:03:03]} 28. Bh3 {[%emt 0:00:41]} Nc3 {[%emt 0:02:05]} 29. Rd2 {[%emt 0:02:08]} Ne2+ {[%emt 0:02:49]} 30. Rxe2 {[%emt 0:00:01]} Bxe2 {[%emt 0:00:08]} 31. Nxe6 {[%emt 0:01:58]} Qb7 {[%emt 0:01:01]} 32. Qc1 {[%emt 0:00:39]} Rb8 {[%emt 0:00:20]} 33. Nf4 {[%emt 0:00:55]} Qb1 {[%emt 0:00:39]} 34. Nxe2 {[%emt 0:00:20]} Qxc1+ {[%emt 0:00:09]} 35. Nxc1 {[%emt 0:00:03]} Rb1 {[%emt 0:00:10]} 0-1

[Event "11th LCC FIDE Open 2019"]
[Site "London"]
[Date "2019.12.02"]
[Round "5.43"]
[White "Modi, Shyam Jagdish"]
[Black "Rogacewicz, Mikolaj"]
[Result "*"]
[ECO "E04"]
[WhiteElo "2124"]
[BlackElo "1921"]
[Annotator "ChessBase"]
[PlyCount "29"]
[EventDate "2019.11.29"]
[EventType "swiss"]
[EventCountry "ENG"]
[SourceTitle "playchess.com"]
[Source "ChessBase"]
[SourceQuality "1"]
[TimeControl "40/5400+30:1800+30"]

1. d4 {[%emt 0:00:00]} e6 {[%emt 0:00:00]} 2. c4 {[%emt 0:00:00]} Nf6 {[%emt 0:00:14]} 3. g3 {[%emt 0:00:00]} d5 {[%emt 0:00:20]} 4. Nf3 {[%emt 0:00:00]} dxc4 {[%emt 0:00:30]} 5. Bg2 {[%emt 0:00:00]} Bb4+ {[%emt 0:00:13]} 6. Bd2 {[%emt 0:00:00]} a5 {[%emt 0:00:12]} 7. Qc2 {[%emt 0:00:37]} Bxd2+ {[%emt 0:00:25]} 8. Qxd2 {[%emt 0:00:32]} c6 {[%emt 0:00:22]} 9. a4 {[%emt 0:01:51]} Ne4 {[%emt 0:00:17]} 10. Qc2 {[%emt 0:10:14]} Nd6 {[%emt 0:00:24]} 11. Ne5 {[%emt 0:03:40]} Na6 {[%emt 0:07:02]} 12. Nd2 {[%emt 0:15:38]} Nb4 {[%emt 0:03:55]} 13. Qc3 {[%emt 0:05:45]} f6 {[%emt 0:02:43]} 14. Nef3 {[%emt 0:01:57]} b5 {[%emt 0:03:46]} 15. O-O {[%emt 0:05:12]} *

[Event "11th LCC FIDE Open 2019"]
[Site "London"]
[Date "2019.12.02"]
[Round "5.43"]
[White "Bucher, Grant W"]
[Black "Kuzhelev, Timur"]
[Result "1-0"]
[ECO "C36"]
[WhiteElo "2121"]
[BlackElo "1716"]
[Annotator "ChessBase"]
[PlyCount "141"]
[EventDate "2019.11.29"]
[EventType "swiss"]
[EventCountry "ENG"]
[SourceTitle "playchess.com"]
[Source "ChessBase"]
[SourceQuality "1"]
[TimeControl "40/5400+30:1800+30"]

1. e4 {[%emt 0:00:00]} e5 {[%emt 0:00:00]} 2. f4 {[%emt 0:00:00]} d5 {[%emt 0:00:05]} 3. exd5 {[%emt 0:00:00]} exf4 {[%emt 0:00:03]} 4. Nf3 {[%emt 0:00:02]} Nf6 {[%emt 0:00:05]} 5. Bc4 {[%emt 0:00:19]} Nxd5 {[%emt 0:00:30]} 6. Nc3 {[%emt 0:00:19]} Nxc3 {[%emt 0:00:29]} 7. dxc3 {[%emt 0:00:14]} Qxd1+ {[%emt 0:00:55]} 8. Kxd1 {[%emt 0:00:06]} Bd6 {[%emt 0:00:03]} 9. Re1+ {[%emt 0:01:44]} Kf8 {[%emt 0:00:11]} 10. Ne5 {[%emt 0:01:39]} Bxe5 {[%emt 0:00:09]} 11. Rxe5 {[%emt 0:00:06]} Nc6 {[%emt 0:00:04]} 12. Rc5 {[%emt 0:12:56]} Bg4+ {[%emt 0:00:22]} 13. Ke1 {[%emt 0:04:44]} g5 {[%emt 0:04:24]} 14. Rxg5 {[%emt 0:09:50]} f5 {[%emt 0:00:14]} 15. Bxf4 {[%emt 0:20:59]} Re8+ {[%emt 0:00:18]} 16. Kf2 {[%emt 0:02:16]} Re4 {[%emt 0:00:08]} 17. Rxg4 {[%emt 0:01:37]} fxg4 {[%emt 0:00:18]} 18. Bh6+ {[%emt 0:00:06]} Ke7 {[%emt 0:01:00]} 19. Bd3 {[%emt 0:06:40]} Re6 {[%emt 0:01:33]} 20. Bg5+ {[%emt 0:03:16]} Kd7 {[%emt 0:01:35]} 21. Kg3 {[%emt 0:04:00]} Kd6 {[%emt 0:04:42]} 22. Bf4+ {[%emt 0:07:58]} Ne5 {[%emt 0:04:52]} 23. Rd1 {[%emt 0:05:39]} Kc6 {[%emt 0:03:26]} 24. Bf5 {[%emt 0:05:04]} Re7 {[%emt 0:00:18]} 25. Be4+ {[%emt 0:01:00]} Kb6 {[%emt 0:00:19]} 26. Rd5 {[%emt 0:01:00]} Nd7 {[%emt 0:01:36]} 27. Bf5 {[%emt 0:04:03]} Nf6 {[%emt 0:00:57]} 28. Re5 {[%emt 0:01:27]} Rhe8 {[%emt 0:01:53]} 29. Rxe7 {[%emt 0:02:16]} Rxe7 {[%emt 0:00:06]} 30. Bg5 {[%emt 0:00:49]} Rf7 {[%emt 0:00:36]} 31. Bxf6 {[%emt 0:00:34]} Rxf6 {[%emt 0:00:31]} 32. Bxh7 {[%emt 0:00:10]} Kc5 {[%emt 0:00:08]} 33. Kxg4 {[%emt 0:00:31]} Rh6 {[%emt 0:00:18]} 34. Be4 {[%emt 0:00:13]} Rxh2 {[%emt 0:00:07]} 35. Bxb7 {[%emt 0:00:41]} c6 {[%emt 0:00:04]} 36. Kg3 {[%emt 0:00:26]} Rh1 {[%emt 0:00:08]} 37. Ba6 {[%emt 0:01:53]} Rb1 {[%emt 0:00:06]} 38. b3 {[%emt 0:02:13]} Rb2 {[%emt 0:00:06]} 39. Bd3 {[%emt 0:00:09]} Rxa2 {[%emt 0:00:35]} 40. Kf4 {[%emt 0:00:13]} a5 {[%emt 0:00:03]} 41. g4 {[%emt 0:32:07]} a4 {[%emt 0:30:08]} 42. bxa4 {[%emt 0:00:00]} Rxa4+ {[%emt 0:00:00]} 43. Kf5 {[%emt 0:00:00]} Kd6 {[%emt 0:00:00]} 44. g5 {[%emt 0:00:00]} Ke7 {[%emt 0:00:00]} 45. g6 {[%emt 0:00:00]} Kf8 {[%emt 0:00:00]} 46. Ke6 {[%emt 0:00:00]} Rf4 {[%emt 0:00:00]} 47. Kd6 {[%emt 0:00:00]} Rf6+ {[%emt 0:00:00]} 48. Kc5 {[%emt 0:00:00]} Kg7 {[%emt 0:00:00]} 49. Kb6 {[%emt 0:00:00]} Re6 {[%emt 0:00:00]} 50. c4 {[%emt 0:00:00]} Kf6 {[%emt 0:00:00]} 51. c5 {[%emt 0:00:00]} Kg7 {[%emt 0:00:00]} 52. Bf5 {[%emt 0:00:00]} Re5 {[%emt 0:00:00]} 53. Bd7 {[%emt 0:00:22]} Kxg6 {[%emt 0:00:00]} 54. Kxc6 {[%emt 0:01:58]} Kf6 {[%emt 0:00:00]} 55. Kd6 {[%emt 0:01:57]} Re2 {[%emt 0:00:00]} 56. c4 {[%emt 0:00:38]} Rd2+ {[%emt 0:00:00]} 57. Kc7 {[%emt 0:00:21]} Ke7 {[%emt 0:00:00]} 58. Bb5 {[%emt 0:00:11]} Rh2 {[%emt 0:00:00]} 59. c6 {[%emt 0:00:51]} Rh7 {[%emt 0:00:00]} 60. c5 {[%emt 0:01:20]} Rg7 {[%emt 0:00:00]} 61. Bc4 {[%emt 0:01:44]} Rg1 {[%emt 0:00:00]} 62. Bd3 {[%emt 0:01:04]} Rc1 {[%emt 0:00:00]} 63. Kb6 {[%emt 0:00:19]} Rc3 {[%emt 0:00:00]} 64. c7 {[%emt 0:00:36]} Rb3+ {[%emt 0:00:00]} 65. Kc6 {[%emt 0:00:17]} Rxd3 {[%emt 0:00:00]} 66. c8=Q {[%emt 0:00:05]} Kf6 {[%emt 0:00:00]} 67. Qf8+ {[%emt 0:00:33]} Ke5 {[%emt 0:00:00]} 68. Qe7+ {[%emt 0:00:08]} Kd4 {[%emt 0:00:00]} 69. Qd6+ {[%emt 0:00:09]} Kc4 {[%emt 0:00:00]} 70. Qxd3+ {[%emt 0:00:06]} Kxd3 {[%emt 0:00:00]} 71. Kd5 {[%emt 0:00:06]} 1-0

[Event "11th LCC FIDE Open 2019"]
[Site "London"]
[Date "2019.12.02"]
[Round "5.44"]
[White "Dias, Savin"]
[Black "Bates, Caspar J"]
[Result "1-0"]
[ECO "C10"]
[WhiteElo "1916"]
[BlackElo "2120"]
[Annotator "ChessBase"]
[PlyCount "139"]
[EventDate "2019.11.29"]
[EventType "swiss"]
[EventCountry "ENG"]
[SourceTitle "playchess.com"]
[Source "ChessBase"]
[SourceQuality "1"]
[TimeControl "40/5400+30:1800+30"]

1. e4 {[%emt 0:00:00]} e6 {[%emt 0:04:36]} 2. d4 {[%emt 0:00:00]} d5 {[%emt 0:00:04]} 3. Nc3 {[%emt 0:00:00]} Nc6 {[%emt 0:00:29]} 4. e5 {[%emt 0:03:23]} b6 {[%emt 0:02:05]} 5. f4 {[%emt 0:01:34]} Bb7 {[%emt 0:00:43]} 6. Nf3 {[%emt 0:00:19]} Qd7 {[%emt 0:02:17]} 7. Bd3 {[%emt 0:01:34]} O-O-O {[%emt 0:06:57]} 8. Be3 {[%emt 0:02:50]} f5 {[%emt 0:00:27]} 9. O-O {[%emt 0:01:16]} Nh6 {[%emt 0:00:22]} 10. h3 {[%emt 0:00:10]} Be7 {[%emt 0:03:12]} 11. Qd2 {[%emt 0:03:13]} Kb8 {[%emt 0:05:14]} 12. Nd1 {[%emt 0:02:47]} Nb4 {[%emt 0:04:02]} 13. Be2 {[%emt 0:00:43]} c5 {[%emt 0:00:07]} 14. c3 {[%emt 0:03:07]} Nc6 {[%emt 0:00:28]} 15. Nf2 {[%emt 0:04:04]} c4 {[%emt 0:05:01]} 16. g4 {[%emt 0:08:19]} Nf7 {[%emt 0:00:19]} 17. gxf5 {[%emt 0:03:50]} exf5 {[%emt 0:00:13]} 18. Kh1 {[%emt 0:04:41]} Rc8 {[%emt 0:01:07]} 19. Rg1 {[%emt 0:03:07]} g6 {[%emt 0:00:14]} 20. Ng5 {[%emt 0:10:16]} Ncd8 {[%emt 0:09:00]} 21. e6 {[%emt 0:01:08]} Nxe6 {[%emt 0:00:47]} 22. Nxf7 {[%emt 0:00:11]} Rhf8 {[%emt 0:01:42]} 23. Ne5 {[%emt 0:00:31]} Qd8 {[%emt 0:01:12]} 24. Qc1 {[%emt 0:05:49]} Bf6 {[%emt 0:00:21]} 25. Nf3 {[%emt 0:07:58]} Qd6 {[%emt 0:02:41]} 26. Bd2 {[%emt 0:08:30]} Rc7 {[%emt 0:00:44]} 27. Ng5 {[%emt 0:02:47]} Nd8 {[%emt 0:00:23]} 28. Qc2 {[%emt 0:01:49]} Qe7 {[%emt 0:00:30]} 29. Rae1 {[%emt 0:00:37]} Qg7 {[%emt 0:00:02]} 30. Bd1 {[%emt 0:02:29]} Bc8 {[%emt 0:01:04]} 31. Re2 {[%emt 0:03:11]} Qh6 {[%emt 0:00:32]} 32. Kh2 {[%emt 0:01:32]} Nb7 {[%emt 0:00:19]} 33. Ne6 {[%emt 0:02:20]} Bxe6 {[%emt 0:00:02]} 34. Rxe6 {[%emt 0:00:08]} Re7 {[%emt 0:01:27]} 35. Rxe7 {[%emt 0:00:13]} Bxe7 {[%emt 0:00:02]} 36. Bf3 {[%emt 0:01:33]} Rd8 {[%emt 0:00:11]} 37. Re1 {[%emt 0:01:02]} Bd6 {[%emt 0:01:20]} 38. Qc1 {[%emt 0:01:28]} Bc7 {[%emt 0:00:02]} 39. Kg2 {[%emt 0:02:13]} Qh4 {[%emt 0:01:46]} 40. Nh1 {[%emt 0:01:46]} Nd6 {[%emt 0:03:19]} 41. Bxd5 {[%emt 0:07:39]} Ne4 {[%emt 0:00:02]} 42. Bxe4 {[%emt 0:00:20]} fxe4 {[%emt 0:00:02]} 43. Rxe4 {[%emt 0:00:44]} g5 {[%emt 0:00:15]} 44. Qe1 {[%emt 0:01:55]} Qxe1 {[%emt 0:00:45]} 45. Rxe1 {[%emt 0:00:19]} gxf4 {[%emt 0:00:10]} 46. Re4 {[%emt 0:00:16]} Rg8+ {[%emt 0:00:18]} 47. Kf2 {[%emt 0:00:13]} Rf8 {[%emt 0:01:08]} 48. Kf3 {[%emt 0:00:09]} Rg8 {[%emt 0:00:04]} 49. Bxf4 {[%emt 0:00:12]} Bxf4 {[%emt 0:00:44]} 50. Rxf4 {[%emt 0:00:05]} Rg1 {[%emt 0:00:09]} 51. Ng3 {[%emt 0:00:49]} Ra1 {[%emt 0:00:33]} 52. Re4 {[%emt 0:00:17]} Rxa2 {[%emt 0:00:07]} 53. Re2 {[%emt 0:00:04]} a5 {[%emt 0:00:11]} 54. Ne4 {[%emt 0:00:12]} Kc7 {[%emt 0:00:17]} 55. Nf6 {[%emt 0:00:13]} h6 {[%emt 0:01:02]} 56. Ng4 {[%emt 0:00:24]} h5 {[%emt 0:00:51]} 57. Nf6 {[%emt 0:00:06]} h4 {[%emt 0:00:02]} 58. Nh5 {[%emt 0:00:12]} b5 {[%emt 0:00:28]} 59. Rd2 {[%emt 0:00:51]} Kd6 {[%emt 0:00:20]} 60. Ng7 {[%emt 0:00:16]} b4 {[%emt 0:00:27]} 61. Ke2 {[%emt 0:01:45]} b3 {[%emt 0:00:48]} 62. Nf5+ {[%emt 0:00:16]} Kc6 {[%emt 0:00:09]} 63. d5+ {[%emt 0:00:04]} Kd7 {[%emt 0:00:26]} 64. Ne3 {[%emt 0:00:13]} Ra1 {[%emt 0:00:21]} 65. Nxc4 {[%emt 0:00:19]} a4 {[%emt 0:00:28]} 66. d6 {[%emt 0:00:24]} a3 {[%emt 0:00:18]} 67. Nxa3 {[%emt 0:00:08]} Rh1 {[%emt 0:00:15]} 68. Nc4 {[%emt 0:00:14]} Rh2+ {[%emt 0:00:31]} 69. Ke3 {[%emt 0:00:08]} Rxh3+ {[%emt 0:00:08]} 70. Kf4 {[%emt 0:00:03]} 1-0

[Event "11th LCC FIDE Open 2019"]
[Site "London"]
[Date "2019.12.02"]
[Round "5.46"]
[White "Tanmay, Chopra"]
[Black "Chilton, James I"]
[Result "1-0"]
[ECO "A09"]
[WhiteElo "2082"]
[BlackElo "1711"]
[Annotator "NA RC"]
[PlyCount "113"]
[EventDate "2019.11.29"]
[EventType "swiss"]
[EventCountry "ENG"]
[SourceTitle "playchess.com"]
[Source "ChessBase"]
[SourceQuality "1"]
[TimeControl "40/5400+30:1800+30"]

1. Nf3 {[%emt 0:00:00]} d5 {[%emt 0:00:00]} 2. c4 {[%emt 0:00:00]} d4 {[%emt 0:00:00]} 3. d3 {[%emt 0:01:02]} c5 {[%emt 0:00:51]} 4. g3 {[%emt 0:00:09]} Nc6 {[%emt 0:00:28]} 5. Bg2 {[%emt 0:00:03]} e5 {[%emt 0:00:35]} 6. O-O {[%emt 0:00:16]} Nf6 {[%emt 0:01:00]} 7. Bg5 {[%emt 0:00:37]} h6 {[%emt 0:00:42] A09: Réti Opening: 1 Nf3 d5 2 c4} (7... Be7 8. Na3 O-O 9. Nc2 h6 10. Bxf6 Bxf6 11. a3 a5 12. Rb1 Be7 13. e3 Bg4 14. h3 Be6 15. Re1 {½-½ (40) Cordova,E (2584)-Pogorelov,R (2417) Barcelona 2012}) 8. Bxf6 {[%emt 0:00:15]} Qxf6 {[%emt 0:00:15]} 9. Na3 {[%emt 0:04:16]} Bd6 {[%emt 0:01:35]} 10. Nd2 {[%emt 0:01:49]} a6 $146 {[%emt 0:02:43]} ({Predecessor:} 10... Qe7 11. Nc2 O-O 12. e3 dxe3 13. Nxe3 Nd4 14. Nd5 Qd8 15. Ne4 {1-0 (52) Glaeser,W (2129)-Pantel,H (1834) Buesum 2017}) 11. e3 {[%emt 0:03:43]} Bf5 {[%emt 0:02:42]} 12. Ne4 {[%emt 0:03:08]} Qe7 {[%emt 0:03:07]} 13. exd4 {[%emt 0:07:52]} cxd4 {[%emt 0:02:21]} 14. c5 {[%emt 0:07:53]} Bxc5 {[%emt 0:10:34]} 15. Nxc5 {[%emt 0:00:15]} Qxc5 {[%emt 0:00:02]} 16. Rc1 {[%emt 0:00:06]} Qa7 {[%emt 0:09:29]} 17. Rxc6 {[%emt 0:02:39]} bxc6 {[%emt 0:00:43]} 18. Bxc6+ {[%emt 0:00:12]} Bd7 {[%emt 0:06:37]} 19. Bxa8 {[%emt 0:00:06]} Qxa8 {[%emt 0:00:05]} 20. Re1 {[%emt 0:00:50]} O-O {[%emt 0:13:26]} 21. Rxe5 {[%emt 0:01:03]} Bc6 {[%emt 0:16:36]} 22. f4 {[%emt 0:06:00]} Bf3 {[%emt 0:04:05]} 23. Qf1 {[%emt 0:00:37]} f6 {[%emt 0:01:38]} 24. Re1 {[%emt 0:00:12]} g5 {[%emt 0:00:49]} 25. Qh3 {[%emt 0:11:36]} (25. Nc2 $16) 25... h5 {[%emt 0:09:06]} 26. Qe6+ {[%emt 0:15:31]} Kh8 {[%emt 0:03:14]} 27. fxg5 {[%emt 0:00:16]} Bd5 {[%emt 0:06:56]} 28. Qe2 {[%emt 0:02:22]} Bf3 {[%emt 0:00:25]} 29. Qe7 {[%emt 0:00:01]} Bh1 {[%emt 0:00:51]} 30. Re2 {[%emt 0:00:40]} fxg5 {[%emt 0:01:51]} 31. Qe5+ {[%emt 0:02:36]} Kh7 {[%emt 0:00:22]} 32. Qxg5 {[%emt 0:00:31]} Qf3 {[%emt 0:01:22]} 33. Re7+ {[%emt 0:00:48]} Rf7 {[%emt 0:00:10]} 34. Rxf7+ {[%emt 0:00:20]} Qxf7 {[%emt 0:00:05]} 35. Qf4 {[%emt 0:01:28]} Qd5 {[%emt 0:01:16]} 36. Qf2 {[%emt 0:03:21]} h4 {[%emt 0:00:26]} 37. Nc2 {[%emt 0:01:41]} h3 {[%emt 0:00:46]} 38. Nxd4 {[%emt 0:01:10]} Kg8 {[%emt 0:01:13]} 39. b3 {[%emt 0:02:04]} Bg2 {[%emt 0:00:26]} 40. Qe3 {[%emt 0:01:11]} Qc5 {[%emt 0:00:36]} 41. Kf2 {[%emt 0:33:32]} Qc3 {[%emt 0:02:48]} 42. Ne2 {[%emt 0:00:00]} Qc2 {[%emt 0:05:49]} 43. Qe6+ {[%emt 0:00:00]} Kh8 {[%emt 0:00:52]} 44. Ke3 {[%emt 0:00:00]} Bf1 $2 {[%emt 0:01:00]} (44... Qxa2 45. Qf6+ Kg8 46. Qe6+ Kf8 47. Qc8+ Ke7 48. Qc7+ Kf6 49. Qc3+ Ke6 50. Qc8+ Ke7 51. Qc7+ Ke8 52. Qc8+ Ke7) 45. Qf6+ {[%emt 0:00:00]} Kg8 {[%emt 0:01:00]} 46. Qxf1 {[%emt 0:00:00]} Qxa2 {[%emt 0:00:41]} 47. Qxh3 {[%emt 0:00:00]} Qxb3 {[%emt 0:00:13]} 48. Qc8+ {[%emt 0:00:00]} Kh7 {[%emt 0:00:23]} 49. Qxa6 {[%emt 0:00:00]} Qd1 {[%emt 0:00:45]} 50. Qb7+ {[%emt 0:00:00]} Kh8 {[%emt 0:00:18]} 51. Qc8+ {[%emt 0:00:00]} Kh7 {[%emt 0:00:12]} 52. g4 {[%emt 0:00:00]} Qh1 {[%emt 0:00:24]} 53. Qf5+ {[%emt 0:00:00]} Kh8 {[%emt 0:00:08]} 54. Qe5+ {[%emt 0:00:00]} Kg8 {[%emt 0:00:23]} 55. d4 {[%emt 0:00:00]} Qg2 {[%emt 0:00:37]} 56. d5 {[%emt 0:00:00]} Qxg4 {[%emt 0:00:18]} 57. Qg3 {[%emt 0:00:00]} 1-0

[Event "11th LCC FIDE Open 2019"]
[Site "London"]
[Date "2019.12.02"]
[Round "5.46"]
[White "Auyeung, Chi Hung Jonathan"]
[Black "Pollack, Oscar"]
[Result "*"]
[ECO "A25"]
[WhiteElo "1770"]
[BlackElo "2112"]
[Annotator "ChessBase"]
[PlyCount "26"]
[EventDate "2019.11.29"]
[EventType "swiss"]
[EventCountry "ENG"]
[SourceTitle "playchess.com"]
[Source "ChessBase"]
[SourceQuality "1"]
[TimeControl "40/5400+30:1800+30"]

1. c4 {[%emt 0:00:00]} g6 {[%emt 0:00:00]} 2. g3 {[%emt 0:00:00]} Bg7 {[%emt 0:00:05]} 3. Bg2 {[%emt 0:00:00]} e5 {[%emt 0:00:00]} 4. Nc3 {[%emt 0:00:31]} Nc6 {[%emt 0:00:15]} 5. e4 {[%emt 0:01:17]} d6 {[%emt 0:02:39]} 6. Nge2 {[%emt 0:01:34]} Nge7 {[%emt 0:01:08]} 7. O-O {[%emt 0:00:56]} h5 {[%emt 0:01:52]} 8. d3 {[%emt 0:18:12]} h4 {[%emt 0:05:59]} 9. Be3 {[%emt 0:04:20]} Nd4 {[%emt 0:03:09]} 10. Nb5 {[%emt 0:09:10]} c5 {[%emt 0:03:50]} 11. Nexd4 {[%emt 0:04:29]} cxd4 {[%emt 0:03:29]} 12. Bd2 {[%emt 0:01:42]} a6 {[%emt 0:01:39]} 13. Qa4 {[%emt 0:03:25]} Nc6 {[%emt 0:02:56]} *